fUST/lending_fUST_20260129
["ID","MTS","AMOUNT","RATE_DAILY","PERIOD"]
[403903019,1769647837989,-500.0,0.00013699,2]
[403903021,1769647837999,-500.0,0.00013699,2]
[403903023,1769647838008,-1000.0,0.00013821,2]
[403903025,1769647838017,-1007.06964924,0.00013821,2]
[403903027,1769647838027,-1000.0,0.00013821,2]
[403903029,1769647838036,-1000.0,0.00013821,2]
[403903031,1769647838046,-961.62464944,0.00014247,2]
[403903033,1769647838055,-1000.0,0.00014247,2]
[403903035,1769647838064,-342.50770963,0.00014367,2]
[403903037,1769647838073,-1500.0,0.00014368,2]
[403903039,1769647838083,-1500.0,0.00014368,2]
[403903041,1769647838093,-536.15794294,0.00014368,2]
[403903043,1769647838106,-963.84205706,0.00014368,2]
[403903045,1769647838116,-300.0,0.00014655,2]
[403903047,1769647838126,-300.0,0.00014655,2]
[403903049,1769647838136,-300.0,0.00014655,2]
[403903051,1769647838146,-300.0,0.00014655,2]
[403903054,1769647838157,-300.0,0.00014655,2]
[403903055,1769647838166,-300.0,0.00014655,2]
[403903058,1769647838175,-300.0,0.00014655,2]
[403903059,1769647838185,-300.0,0.00014655,2]
[403903062,1769647838195,-300.0,0.00014655,2]
[403903063,1769647838204,-300.0,0.00014655,2]
[403903065,1769647838213,-300.0,0.00014655,2]
[403903067,1769647838223,-300.0,0.00014655,2]
[403903069,1769647838231,-300.0,0.00014655,2]
[403903071,1769647838240,-300.0,0.00014655,2]
[403903073,1769647838250,-300.0,0.00014655,2]
[403903075,1769647838259,-1500.0,0.00014795,2]
[403903077,1769647838268,-130953.94300433,0.00014816,2]
[403903080,1769647838283,-3197.18973189,0.00014816,2]
[403903082,1769647838294,-1020778.42384986,0.00014816,2]
[403903084,1769647838305,-333.46204859,0.00014816,2]
[403903086,1769647838317,-35466.75229328,0.00014816,2]
[403903089,1769647838331,-6682.4868,0.00014816,2]
[403903116,1769647838580,1000.0,0.00030137,120]
[403903166,1769647840086,-17685.0,0.00014816,2]
[403903167,1769647840140,-46769.11673209,0.00014816,2]
[403903168,1769647840151,-20218.96159278,0.00014816,2]
[403903169,1769647840163,-412129.91688333,0.00014816,2]
[403903170,1769647840173,-303.40617634,0.000149,2]
[403903171,1769647840182,-303.40617633,0.000149,2]
[403903172,1769647840191,-303.40617633,0.000149,2]
[403903173,1769647840200,-2000.0,0.00014916,2]
[403903174,1769647840209,-2000.0,0.00014916,2]
[403903175,1769647840217,-1585.83878744,0.00014916,2]
[403903176,1769647840227,-420.0,0.00015011,2]
[403903177,1769647840235,-3053.0125604,0.00015142,2]
[403903178,1769647840244,-369.7604225,0.0001524,2]
[403903179,1769647840252,-199.68667433,0.00015241,2]
[403903180,1769647840261,-221.57832459,0.00015241,2]
[403903181,1769647840270,-151.332,0.00015242,2]
[403903182,1769647840279,-1544.12,0.00015242,2]
[403903183,1769647840287,-1544.12,0.00015242,2]
[403903184,1769647840296,-1544.12,0.00015242,2]
[403903185,1769647840305,-1544.12,0.00015242,2]
[403903186,1769647840313,-1544.12,0.00015242,2]
[403903187,1769647840322,-1544.12,0.00015242,2]
[403903188,1769647840331,-1544.12,0.00015242,2]
[403903189,1769647840340,-1544.12,0.00015242,2]
[403903190,1769647840349,-1544.12,0.00015242,2]
[403903191,1769647840357,-1544.12,0.00015242,2]
[403903192,1769647840366,-1544.12,0.00015242,2]
[403903193,1769647840375,-1544.12,0.00015242,2]
[403903194,1769647840384,-1544.12,0.00015242,2]
[403903195,1769647840392,-1544.12,0.00015242,2]
[403903196,1769647840401,-1544.12,0.00015242,2]
[403903197,1769647840410,-1544.12,0.00015242,2]
[403903198,1769647840418,-1544.12,0.00015242,2]
[403903199,1769647840427,-1544.12,0.00015242,2]
[403903200,1769647840436,-1544.12,0.00015242,2]
[403903201,1769647840445,-1544.12,0.00015242,2]
[403903202,1769647840455,-1544.12,0.00015242,2]
[403903203,1769647840464,-1544.12,0.00015242,2]
[403903204,1769647840473,-1544.12,0.00015242,2]
[403903205,1769647840482,-1544.12,0.00015242,2]
[403903206,1769647840491,-1544.12,0.00015242,2]
[403903207,1769647840499,-1544.12,0.00015242,2]
[403903208,1769647840508,-1544.12,0.00015242,2]
[403903209,1769647840517,-1544.12,0.00015242,2]
[403903210,1769647840526,-1544.12,0.00015242,2]
[403903211,1769647840535,-1544.12,0.00015242,2]
[403903212,1769647840543,-1544.12,0.00015242,2]
[403903213,1769647840552,-1544.12,0.00015242,2]
[403903214,1769647840561,-1544.12,0.00015242,2]
[403903215,1769647840570,-1544.12,0.00015242,2]
[403903216,1769647840579,-1544.12,0.00015242,2]
[403903217,1769647840587,-1544.12,0.00015242,2]
[403903218,1769647840596,-1544.12,0.00015242,2]
[403903219,1769647840605,-2243.02,0.00015242,2]
[403903220,1769647840614,-7593.91,0.00015342,2]
[403903221,1769647840622,-2000.0,0.00015342,2]
[403903222,1769647840631,-2202.90287346,0.00015464,2]
[403903223,1769647840641,-2500.0,0.00015464,2]
[403903224,1769647840651,-600.0,0.00015546,2]
[403903226,1769647840661,-10000.0,0.00015559,2]
[403903227,1769647840670,-5000.0,0.0001564,2]
[403903228,1769647840679,-10000.0,0.00015659,2]
[403903229,1769647840688,-2500.0,0.0001589,2]
[403903230,1769647840698,-12498.0218012,0.00015943,2]
[403903231,1769647840711,-1391.8249567,0.00015943,2]
[403903232,1769647840720,-55591.0843819,0.00015943,2]
[403903233,1769647840729,-500.0,0.00016012,2]
[403903234,1769647840738,-160.0,0.00016256,2]
[403903235,1769647840749,-160.0,0.00016256,2]
[403903236,1769647840758,-200.0,0.00016438,2]
[403903237,1769647840767,-500.0,0.00016438,2]
[403903238,1769647840777,-269.88786382,0.00016438,2]
[403903239,1769647840786,-150.42150351,0.00016438,2]
[403903240,1769647840796,-3000.0,0.00016438,2]
[403903241,1769647840804,-587.0,0.00016451,2]
[403903242,1769647840813,-200.0,0.00016473,2]
[403903243,1769647840823,-459.0,0.00016985,2]
[403903244,1769647840832,-3500.0,0.00016986,2]
[403903245,1769647840841,-336.05722388,0.00017068,3]
[403903246,1769647840851,-720.0,0.00017101,2]
[403903247,1769647840859,-459.0,0.00017122,2]
[403903248,1769647840869,-426.16455475,0.0001724,2]
[403903249,1769647840878,-170.95332067,0.00017259,2]
[403903250,1769647840887,-459.0,0.00017259,2]
[403903251,1769647840896,-3053.0125604,0.00017319,2]
[403903252,1769647840906,-459.0,0.00017396,2]
[403903253,1769647840915,-1041.66666667,0.0001747,2]
[403903254,1769647840924,-27792.424296,0.00017491,2]
[403903255,1769647840933,-459.0,0.00017533,2]
[403903256,1769647840942,-4000.0,0.00017534,2]
[403903257,1769647840951,-459.0,0.0001767,2]
[403903258,1769647840961,-459.0,0.00017807,2]
[403903259,1769647840972,-200.47154856,0.00017842,2]
[403903260,1769647840984,-9071.92816396,0.00017857,2]
[403903261,1769647840993,-459.0,0.00017944,2]
[403903262,1769647841003,-135573.83356864,0.00018,2]
[403903263,1769647841012,-100932.9359717,0.00018,2]
[403903275,1769647843887,-7158.34228991,0.00018,2]
[403903276,1769647843898,-3722.3649,0.00018,2]
[403903277,1769647843909,-14249.0254658,0.00018,2]
[403903278,1769647843918,-799.0,0.00018028,2]
[403903279,1769647843927,-459.0,0.00018081,2]
[403903280,1769647843937,-4500.0,0.00018082,2]
[403903281,1769647843947,-206.0,0.00018164,3]
[403903282,1769647843955,-459.0,0.00018218,2]
[403903283,1769647843964,-9548.19578351,0.000183,3]
[403903284,1769647843973,-459.0,0.00018355,2]
[403903285,1769647843982,-200.0,0.00018356,2]
[403903286,1769647843991,-459.0,0.00018492,2]
[403903288,1769647844000,-410.350615,0.00018493,2]
[403903289,1769647844010,-459.0,0.00018629,2]
[403903290,1769647844019,-5000.0,0.0001863,2]
[403903291,1769647844028,-459.0,0.00018766,2]
[403903292,1769647844037,-5000.0,0.00018768,2]
[403903293,1769647844046,-864.0,0.00018811,2]
[403903294,1769647844055,-303.10001603,0.000189,2]
[403903295,1769647844064,-459.0,0.00018903,2]
[403903296,1769647844073,-251.84939869,0.00018904,2]
[403903297,1769647844082,-6571.99628529,0.00019,2]
[403903298,1769647844098,-2080.75000043,0.00019,2]
[403903299,1769647844109,-3958.39009134,0.00019,2]
[403903300,1769647844119,-507.49556332,0.00019,2]
[403903301,1769647844130,-2455.38369134,0.00019,2]
[403903302,1769647844158,1000.0,0.00030137,120]
[403903310,1769647846015,-4132.80713712,0.00019,2]
[403903311,1769647846027,-49790.5097557,0.00019,2]
[403903312,1769647846036,-2603.49,0.00019,2]
[403903313,1769647846045,-11694.55470091,0.00019,2]
[403903314,1769647846054,-459.0,0.0001904,2]
[403903315,1769647846063,-2788.685606,0.00019055,2]
[403903316,1769647846073,-12404.0475609,0.00019055,2]
[403903317,1769647846081,-303.10001603,0.00019089,2]
[403903319,1769647846090,-333.10205309,0.00019118,2]
[403903320,1769647846099,-459.0,0.00019177,2]
[403903321,1769647846108,-425.77,0.00019178,2]
[403903322,1769647846117,-846.77,0.00019178,2]
[403903324,1769647846126,-508.06,0.00019178,2]
[403903325,1769647846135,-1216.12,0.00019178,2]
[403903326,1769647846326,-338.71,0.00019178,2]
[403903327,1769647846336,-1524.19,0.00019178,2]
[403903328,1769647846346,-1016.12,0.00019178,2]
[403903329,1769647846355,-5500.0,0.00019178,2]
[403903330,1769647846364,-1850.95,0.000192,2]
[403903331,1769647846373,-172.01,0.000192,2]
[403903332,1769647846382,-161.04,0.000192,2]
[403903333,1769647846391,-168.1,0.000192,2]
[403903334,1769647846401,-6249.64,0.000192,2]
[403903335,1769647846410,-482.56868699,0.0001924,2]
[403903336,1769647846421,-207.0,0.0001926,3]
[403903337,1769647846430,-303.10001603,0.00019278,2]
[403903338,1769647846439,-459.0,0.00019314,2]
[403903339,1769647846448,-459.0,0.00019451,2]
[403903340,1769647846457,-303.10001603,0.00019467,2]
[403903341,1769647846466,-3053.0125604,0.00019496,2]
[403903342,1769647846475,-459.0,0.00019588,2]
[403903343,1769647846484,-157.3122286,0.00019596,2]
[403903344,1769647846493,-303.10001603,0.00019656,2]
[403903345,1769647846502,-459.0,0.00019725,2]
[403903346,1769647846512,-6000.0,0.00019726,2]
[403903347,1769647846521,-762.158468,0.00019726,7]
[403903348,1769647846531,-622.2398658,0.00019749,2]
[403903349,1769647846540,-2767.7171187,0.00019749,2]
[403903350,1769647846549,-601.59897344,0.00019845,4]
[403903351,1769647846558,-346.0,0.00019851,2]
[403903352,1769647846568,-459.0,0.00019862,2]
[403903353,1769647846577,-459.0,0.00019999,2]
[403903354,1769647846586,-406.20341507,0.0002,30]
[403903355,1769647846596,-200079.53657565,0.0002,2]
[403903356,1769647846607,-1610.19785751,0.0002,2]
[403903357,1769647846618,-569.37999998,0.0002,2]
[403903358,1769647846629,-10707.07927695,0.0002,2]
[403903359,1769647846640,-879.35572213,0.0002,2]
[403903360,1769647846651,-8810.0,0.0002,2]
[403903361,1769647846662,-9218.81736236,0.0002,2]
[403903362,1769647846676,-669.03005193,0.0002,2]
[403903363,1769647847677,1000.0,0.00030137,120]
[403903364,1769647851580,1000.0,0.00030137,120]
[403903365,1769647854845,1000.0,0.00030137,120]
[403903366,1769647857624,1000.0,0.00030137,120]
[403903367,1769647860356,1000.0,0.00030137,120]
[403903368,1769647862866,1000.0,0.00030137,120]
[403903371,1769647865580,1000.0,0.00030137,120]
[403903372,1769647868372,1000.0,0.00030137,120]
[403903373,1769647870875,1000.0,0.00030137,120]
[403903374,1769647873397,1000.0,0.00030137,120]
[403903375,1769647875815,1000.0,0.00030137,120]
[403903376,1769647879020,1000.0,0.00030137,120]
[403903377,1769647881607,1000.0,0.00030137,120]
[403903378,1769647884064,1000.0,0.00030137,120]
[403903379,1769647886660,1000.0,0.00030137,120]
[403903380,1769647889415,1000.0,0.00030137,120]
[403903381,1769647892797,1000.0,0.00030137,120]
[403903382,1769647895584,1000.0,0.00030137,120]
[403903383,1769647897846,1000.0,0.00030137,120]
[403903384,1769647900244,1000.0,0.00030137,120]
[403903385,1769647902299,1000.0,0.00030137,120]
[403903386,1769647904665,1000.0,0.00030137,120]
[403903387,1769647906868,1000.0,0.00030137,120]
[403903388,1769647909841,1000.0,0.00030137,120]
[403903389,1769647912137,1000.0,0.00030137,120]
[403903390,1769647914743,1000.0,0.00030137,120]
[403903391,1769647917408,1000.0,0.00030137,120]
[403903392,1769647920073,1000.0,0.00030137,120]
[403903393,1769647922244,1000.0,0.00030137,120]
[403903394,1769647924621,1000.0,0.00030137,120]
[403903395,1769647927137,1000.0,0.00030137,120]
[403903396,1769647937384,2000.0,0.00030137,120]
[403903397,1769647940062,2000.0,0.00030137,120]
[403903398,1769647942951,2000.0,0.00030137,120]
[403903399,1769647948108,2000.0,0.00030137,120]
[403903400,1769647951299,2000.0,0.00030137,120]
[403903401,1769647984332,1800.0,0.00030137,120]
[403903402,1769648039008,1000.0,0.00030137,120]
[403903403,1769648178616,160.0,0.00030137,120]
[403903405,1769648840310,7398.0,0.00030137,120]
[403903456,1769649032068,-2461.14293814,0.0001316,2]
[403903458,1769649032078,-293.69099768,0.0001336,2]
[403903460,1769649032087,-500.0,0.00013699,2]
[403903462,1769649032096,-1000.0,0.00014247,2]
[403903464,1769649032105,-300.0,0.00014615,2]
[403903466,1769649032114,-2137.10879228,0.00014616,2]
[403903468,1769649032124,-378.91227728,0.00014616,2]
[403903470,1769649032133,-872.08340712,0.00014616,2]
[403903559,1769649038142,-1555.06048009,0.00014616,2]
[403903561,1769649038152,-316.05730861,0.00014715,2]
[403903563,1769649038162,-151.33254163,0.00014715,2]
[403903565,1769649038172,-950.36,0.00014716,2]
[403903567,1769649038182,-464.04211229,0.00014716,2]
[403903581,1769649038308,-283.32,0.00014716,2]
[403903681,1769649043537,-202.99788771,0.00014716,2]
[403903682,1769649043548,-950.36,0.00014716,2]
[403903683,1769649043558,-950.36,0.00014716,2]
[403903684,1769649043567,-950.36,0.00014716,2]
[403903685,1769649043576,-950.36,0.00014716,2]
[403903686,1769649043586,-950.36,0.00014716,2]
[403903687,1769649043596,-950.36,0.00014716,2]
[403903688,1769649043605,-950.36,0.00014716,2]
[403903689,1769649043614,-950.36,0.00014716,2]
[403903690,1769649043623,-950.36,0.00014716,2]
[403903691,1769649043632,-950.36,0.00014716,2]
[403903692,1769649043641,-950.36,0.00014716,2]
[403903693,1769649043651,-950.36,0.00014716,2]
[403903694,1769649043660,-950.36,0.00014716,2]
[403903695,1769649043669,-950.36,0.00014716,2]
[403903696,1769649043678,-950.36,0.00014716,2]
[403903697,1769649043687,-950.36,0.00014716,2]
[403903698,1769649043696,-950.36,0.00014716,2]
[403903699,1769649043705,-950.36,0.00014716,2]
[403903700,1769649043714,-950.36,0.00014716,2]
[403903701,1769649043723,-950.36,0.00014716,2]
[403903702,1769649043732,-950.36,0.00014716,2]
[403903703,1769649043741,-950.36,0.00014716,2]
[403903704,1769649043751,-950.36,0.00014716,2]
[403903705,1769649043760,-950.36,0.00014716,2]
[403903706,1769649043770,-950.36,0.00014716,2]
[403903707,1769649043779,-950.36,0.00014716,2]
[403903708,1769649043788,-950.36,0.00014716,2]
[403903709,1769649043798,-950.36,0.00014716,2]
[403903710,1769649043808,-950.36,0.00014716,2]
[403903711,1769649043817,-950.36,0.00014716,2]
[403903712,1769649043827,-950.36,0.00014716,2]
[403903713,1769649043836,-950.36,0.00014716,2]
[403903714,1769649043845,-950.36,0.00014716,2]
[403903715,1769649043855,-1185.77,0.00014716,2]
[403903716,1769649043864,-1500.0,0.00014795,2]
[403903717,1769649043873,-184.95386914,0.00014898,2]
[403903718,1769649043883,-300.0,0.0001501,2]
[403903719,1769649043892,-300.0,0.0001501,2]
[403903720,1769649043901,-300.0,0.0001501,2]
[403903721,1769649043911,-300.0,0.0001501,2]
[403903722,1769649043921,-300.0,0.0001501,2]
[403903723,1769649043931,-300.0,0.0001501,2]
[403903724,1769649043940,-300.0,0.0001501,2]
[403903725,1769649043950,-300.0,0.0001501,2]
[403903726,1769649043959,-300.0,0.0001501,2]
[403903727,1769649043969,-300.0,0.0001501,2]
[403903728,1769649043978,-300.0,0.0001501,2]
[403903729,1769649043987,-300.0,0.0001501,2]
[403903730,1769649043997,-300.0,0.0001501,2]
[403903731,1769649044006,-300.0,0.0001501,2]
[403903732,1769649044015,-300.0,0.0001501,2]
[403903733,1769649044024,-600.0,0.0001501,2]
[403903734,1769649044033,-422.182635,0.00015068,2]
[403903735,1769649044042,-184.95386914,0.00015305,2]
[403903736,1769649044051,-2000.0,0.00015342,2]
[403903737,1769649044060,-346.55537727,0.0001536,2]
[403903738,1769649044069,-176.51146593,0.00015778,2]
[403903739,1769649044078,-175.04494187,0.00015778,2]
[403903740,1769649044088,-157.26127169,0.00015778,2]
[403903741,1769649044097,-2500.0,0.0001589,2]
[403903742,1769649044106,-3000.0,0.00016,2]
[403903743,1769649044115,-420.0,0.00016002,2]
[403903744,1769649044125,-1655.72074439,0.0001601,2]
[403903745,1769649044141,-447.54,0.0001601,2]
[403903754,1769649046154,-896.73925561,0.0001601,2]
[403903755,1769649046164,-251.44681245,0.0001602,2]
[403903757,1769649046323,-2748.55318755,0.0001602,2]
[403903758,1769649046334,-3000.0,0.0001603,2]
[403903759,1769649046348,-1308.26210734,0.0001604,2]
[403903760,1769649046371,-1691.73789266,0.0001604,2]
[403903761,1769649046380,-3000.0,0.0001605,2]
[403903762,1769649046389,-3000.0,0.0001606,2]
[403903763,1769649046400,-3000.0,0.0001607,2]
[403903764,1769649046410,-3000.0,0.0001608,2]
[403903765,1769649046420,-3000.0,0.0001609,2]
[403903766,1769649046431,-3000.0,0.000161,2]
[403903767,1769649046440,-1245.72736962,0.0001611,2]
[403903772,1769649874354,5518.0,0.00030137,120]
[403903807,1769650204235,179.07,0.0001,2]
[403903809,1769650221357,-176.51146594,0.00011995,2]
[403903810,1769650221387,-159.31844991,0.00011995,2]
[403903811,1769650221402,-15.72649196,0.00011995,2]
[403903812,1769650221413,-160.78497398,0.00012084,2]
[403903813,1769650221430,-175.04494187,0.00012084,2]
[403903847,1769650232290,-4664.17008415,0.00012084,2]
[403903849,1769650232300,-590.0,0.00012084,2]
[403903851,1769650232308,-293.1635752,0.00012206,2]
[403903853,1769650232317,-197.78,0.00012329,2]
[403903855,1769650232326,-164.81,0.00012329,2]
[403903857,1769650232336,-824.1,0.00012329,2]
[403903859,1769650232345,-300.0,0.00012365,2]
[403903861,1769650232354,-176.51146593,0.00012367,2]
[403903863,1769650232363,-500.0,0.00013273,2]
[403903865,1769650232372,-500.0,0.00013273,2]
[403903867,1769650232381,-500.0,0.00013273,2]
[403903869,1769650232391,-500.0,0.00013273,2]
[403903871,1769650232401,-500.0,0.00013273,2]
[403903873,1769650232410,-500.0,0.00013273,2]
[403903875,1769650232418,-3078.76686998,0.00013479,2]
[403903877,1769650232427,-300.0,0.00013537,2]
[403903879,1769650232437,-300.0,0.00013537,2]
[403903881,1769650232446,-300.0,0.00013537,2]
[403903883,1769650232456,-300.0,0.00013537,2]
[403903885,1769650232465,-300.0,0.00013537,2]
[403903887,1769650232474,-300.0,0.00013537,2]
[403903889,1769650232483,-300.0,0.00013537,2]
[403903891,1769650232492,-300.0,0.00013537,2]
[403903893,1769650232502,-300.0,0.00013537,2]
[403903895,1769650232511,-300.0,0.00013537,2]
[403903897,1769650232520,-223.62823064,0.00013537,2]
[403903899,1769650232533,-76.37176936,0.00013537,2]
[403903901,1769650232542,-300.0,0.00013537,2]
[403903903,1769650232551,-300.0,0.00013537,2]
[403903905,1769650232560,-38.31319849,0.00013537,2]
[403903908,1769650232571,-261.68680151,0.00013537,2]
[403903910,1769650232580,-300.0,0.00013537,2]
[403903912,1769650232589,-67.61396793,0.00013569,2]
[403903914,1769650232600,-276.36,0.00013569,2]
[403903916,1769650232612,-76.02603207,0.00013569,2]
[403903918,1769650232624,-1000.0,0.00013699,2]
[403903920,1769650232633,-501.29959982,0.00013699,2]
[403903922,1769650232643,-21.20550045,0.00013699,2]
[403904056,1769650238371,-297.08773857,0.00013699,2]
[403904061,1769650238464,-181.70676098,0.00013699,2]
[403904063,1769650238474,-185.64983062,0.00013807,2]
[403904076,1769650240635,-305.0716759,0.00013669,2]
[403904111,1769650244210,-1663.26006347,0.00013669,2]
[403904112,1769650244225,-2110.0,0.00013669,2]
[403904130,1769650246531,-304.03463364,0.00013669,2]
[403904131,1769650246541,-287.6594116,0.00013738,2]
[403904132,1769650246551,-414.35016938,0.00013807,2]
[403904133,1769650246560,-500.0,0.00013821,2]
[403904134,1769650246569,-500.0,0.00013821,2]
[403904135,1769650246578,-563.32426984,0.00013821,2]
[403904136,1769650263034,1505.01347456,0.0003013,120]
[403904137,1769650273316,174.6178014,0.0003,120]
[403904138,1769650297565,682.43,0.0003013,120]
[403904139,1769650338349,810.46,0.0003013,120]
[403904143,1769650942341,-3100.0,0.00012879,2]
[403904145,1769650955481,162.0,0.000301,120]
[403904246,1769650968060,163.65850526,0.000301,120]
[403904289,1769651247611,160.0,0.00030137,120]
[403904290,1769651268756,160.4,0.00030137,120]
[403904299,1769651365415,798.0,0.0003013,120]
[403904300,1769651368426,798.0,0.0003013,120]
[403904301,1769651371396,268.92,0.0003013,120]
[403904326,1769651432352,-1900.0,0.00012497,2]
[403904328,1769651432363,-294.14622337,0.00012847,2]
[403904330,1769651432373,-271.0,0.00012944,2]
[403904331,1769651432382,-1360.53353898,0.00012945,2]
[403904333,1769651432391,-669.62094024,0.00012945,2]
[403904335,1769651432403,-1742.55011859,0.00012945,2]
[403904336,1769651432414,-377.06977027,0.00012945,2]
[403904337,1769651432427,-2647.45119267,0.00012945,2]
[403904338,1769651432437,-855.38636104,0.00012945,2]
[403904339,1769651432446,-3421.54544415,0.00012945,2]
[403904340,1769651432455,-7690.77877208,0.00012945,2]
[403904341,1769651432465,-500.0,0.00013273,2]
[403904342,1769651432474,-501.75190797,0.00013273,2]
[403904343,1769651432483,-500.0,0.00013273,2]
[403904345,1769651432493,-500.0,0.00013273,2]
[403904347,1769651432502,-500.0,0.00013273,2]
[403904349,1769651432510,-2292.48501278,0.00013526,2]
[403904351,1769651432520,-160.0,0.000136,2]
[403904353,1769651432529,-160.0,0.000136,2]
[403904355,1769651432538,-160.0,0.000136,2]
[403904356,1769651432547,-569.20394299,0.00013621,2]
[403904357,1769651432556,-500.0,0.00013625,2]
[403904358,1769651432566,-651.99199888,0.00013625,2]
[403904359,1769651432575,-150.15919667,0.00013673,2]
[403904360,1769651432584,-227.564193,0.00013699,2]
[403904361,1769651432594,-155.54042683,0.00013712,2]
[403904362,1769651432603,-222.64895343,0.0001372,2]
[403904363,1769651432612,-194.79732408,0.0001372,2]
[403904364,1769651432621,-157.265,0.0001372,2]
[403904365,1769651432632,-553.29,0.00013721,2]
[403904366,1769651432641,-553.29,0.00013721,2]
[403904367,1769651432650,-553.29,0.00013721,2]
[403904368,1769651432659,-553.29,0.00013721,2]
[403904369,1769651432667,-553.29,0.00013721,2]
[403904370,1769651432676,-553.29,0.00013721,2]
[403904371,1769651432685,-553.29,0.00013721,2]
[403904372,1769651432696,-553.29,0.00013721,2]
[403904373,1769651432705,-553.29,0.00013721,2]
[403904374,1769651432714,-553.29,0.00013721,2]
[403904375,1769651432723,-553.29,0.00013721,2]
[403904376,1769651432732,-553.29,0.00013721,2]
[403904377,1769651432741,-553.29,0.00013721,2]
[403904378,1769651432750,-553.29,0.00013721,2]
[403904379,1769651432874,-553.29,0.00013721,2]
[403904380,1769651432920,-553.29,0.00013721,2]
[403904381,1769651432930,-553.29,0.00013721,2]
[403904382,1769651432939,-553.29,0.00013721,2]
[403904383,1769651432948,-553.29,0.00013721,2]
[403904384,1769651432957,-553.29,0.00013721,2]
[403904385,1769651432966,-553.29,0.00013721,2]
[403904386,1769651432980,-553.29,0.00013721,2]
[403904387,1769651432990,-553.29,0.00013721,2]
[403904388,1769651433001,-553.29,0.00013721,2]
[403904390,1769651433011,-553.29,0.00013721,2]
[403904391,1769651433022,-553.29,0.00013721,2]
[403904393,1769651433031,-553.29,0.00013721,2]
[403904394,1769651433041,-553.29,0.00013721,2]
[403904395,1769651433050,-553.29,0.00013721,2]
[403904396,1769651433059,-553.29,0.00013721,2]
[403904397,1769651433069,-553.29,0.00013721,2]
[403904398,1769651433078,-553.29,0.00013721,2]
[403904399,1769651433088,-553.29,0.00013721,2]
[403904400,1769651433097,-553.29,0.00013721,2]
[403904401,1769651433107,-553.29,0.00013721,2]
[403904402,1769651433116,-652.14,0.00013721,2]
[403904403,1769651433125,-1925.65109138,0.00013721,2]
[403904404,1769651433135,-1000.0,0.00013821,2]
[403904405,1769651433144,-545.93394327,0.00013821,2]
[403904406,1769651433153,-1000.0,0.00013821,2]
[403904407,1769651433163,-979.63344782,0.00013821,2]
[403904408,1769651433172,-250.85099233,0.00014022,2]
[403904409,1769651433182,-300.0,0.00014096,2]
[403904410,1769651433192,-300.0,0.00014096,2]
[403904411,1769651433201,-300.0,0.00014096,2]
[403904412,1769651433210,-300.0,0.00014096,2]
[403904413,1769651433219,-300.0,0.00014096,2]
[403904414,1769651433229,-300.0,0.00014096,2]
[403904415,1769651433238,-300.0,0.00014096,2]
[403904416,1769651433247,-300.0,0.00014096,2]
[403904417,1769651433256,-300.0,0.00014096,2]
[403904418,1769651433265,-300.0,0.00014096,2]
[403904419,1769651433276,-300.0,0.00014096,2]
[403904420,1769651433285,-300.0,0.00014096,2]
[403904421,1769651433294,-300.0,0.00014096,2]
[403904422,1769651433303,-300.0,0.00014096,2]
[403904423,1769651433312,-300.0,0.00014096,2]
[403904424,1769651433322,-228.19698272,0.00014247,2]
[403904425,1769651433332,-569.20394296,0.00014359,2]